[Event "Titled Tuesday Blitz October 11 Late 2022"]
[White "Matinian, Nikita"]
[Black "Meunier-Pion, Jean"]
[WhiteFideId "24129100"]
[BlackFideId "20685327"]
[WhiteElo "2422"]
[BlackElo "2124"]
[Result "1-0"]
[Round "03"]
[TimeControl "180+1"]
[Date "2022.10.12"]
[WhiteClock "0:00:08"]
[BlackClock "0:00:06"]

1. e4 {[%clk 0:03:00]}  c5 {[%clk 0:03:00]} 2. Nf3 {[%clk 0:03:00]}  d6 {[%clk 0:03:00]} 3. d4 {[%clk 0:02:59]}  cxd4 {[%clk 0:03:00]} 4. Nxd4 {[%clk 0:03:00]}  Nf6 {[%clk 0:03:01]} 5. Nc3 {[%clk 0:03:00]}  a6 {[%clk 0:03:01]} 6. Bg5 {[%clk 0:03:00]}  Nbd7 {[%clk 0:03:01]} 7. Bc4 {[%clk 0:02:59]}  Qa5 {[%clk 0:02:59]} 8. Qd2 {[%clk 0:02:51]}  e6 {[%clk 0:02:58]} 9. O-O-O {[%clk 0:02:50]}  b5 {[%clk 0:02:58]} 10. Bxe6 {[%clk 0:02:42]}  fxe6 {[%clk 0:02:57]} 11. Nxe6 {[%clk 0:02:42]}  b4 {[%clk 0:02:43]} 12. Nd5 {[%clk 0:02:42]}  Qxa2 {[%clk 0:02:41]} 13. Qxb4 {[%clk 0:02:30]}  a5 {[%clk 0:02:11]} 14. Qd4 {[%clk 0:01:52]}  Bb7 {[%clk 0:01:56]} 15. Nec7+ {[%clk 0:01:34]}  Kd8 {[%clk 0:01:56]} 16. Nxa8 {[%clk 0:01:28]}  Bxa8 {[%clk 0:01:56]} 17. Nxf6 {[%clk 0:01:26]}  Be7 {[%clk 0:01:41]} 18. e5 {[%clk 0:01:00]}  Nxe5 {[%clk 0:00:47]} 19. Qxe5 {[%clk 0:00:26]}  Qa1+ {[%clk 0:00:47]} 20. Kd2 {[%clk 0:00:26]}  Qxd1+ {[%clk 0:00:48]} 21. Rxd1 {[%clk 0:00:27]}  dxe5 {[%clk 0:00:49]} 22. Ke2+ {[%clk 0:00:25]}  Kc8 {[%clk 0:00:48]} 23. Ne4 {[%clk 0:00:19]}  Bxe4 {[%clk 0:00:36]} 24. Bxe7 {[%clk 0:00:19]}  Bxg2 {[%clk 0:00:37]} 25. Rg1 {[%clk 0:00:17]}  Re8 {[%clk 0:00:24]} 26. Bd6 {[%clk 0:00:17]}  Be4 {[%clk 0:00:24]} 27. Rxg7 {[%clk 0:00:17]}  Bxc2 {[%clk 0:00:24]} 28. Rc7+ {[%clk 0:00:17]}  Kd8 {[%clk 0:00:25]} 29. Rxc2 {[%clk 0:00:18]}  Re6 {[%clk 0:00:25]} 30. Bc7+ {[%clk 0:00:17]}  Kd7 {[%clk 0:00:25]} 31. Bxa5 {[%clk 0:00:18]}  Ra6 {[%clk 0:00:25]} 32. Bc3 {[%clk 0:00:17]}  Ke6 {[%clk 0:00:24]} 33. Ke3 {[%clk 0:00:17]}  Kf5 {[%clk 0:00:24]} 34. f3 {[%clk 0:00:18]}  Rh6 {[%clk 0:00:23]} 35. Rd2 {[%clk 0:00:18]}  Rh3 {[%clk 0:00:23]} 36. Rd5 {[%clk 0:00:18]}  Rxh2 {[%clk 0:00:24]} 37. Rxe5+ {[%clk 0:00:18]}  Kg6 {[%clk 0:00:25]} 38. Re6+ {[%clk 0:00:17]}  Kf5 {[%clk 0:00:24]} 39. Rf6+ {[%clk 0:00:17]}  Kg5 {[%clk 0:00:25]} 40. Rf8 {[%clk 0:00:16]}  h5 {[%clk 0:00:24]} 41. Bf6+ {[%clk 0:00:14]}  Kg6 {[%clk 0:00:23]} 42. Be5 {[%clk 0:00:15]}  Rh1 {[%clk 0:00:20]} 43. Kf4 {[%clk 0:00:15]}  Rh4+ {[%clk 0:00:19]} 44. Kg3 {[%clk 0:00:12]}  Rh1 {[%clk 0:00:20]} 45. Rf6+ {[%clk 0:00:10]}  Kh7 {[%clk 0:00:19]} 46. Kf4 {[%clk 0:00:09]}  Rg1 {[%clk 0:00:15]} 47. Kf5 {[%clk 0:00:09]}  h4 {[%clk 0:00:14]} 48. Rf7+ {[%clk 0:00:09]}  Kg8 {[%clk 0:00:10]} 49. Ra7 {[%clk 0:00:09]}  h3 {[%clk 0:00:09]} 50. Ra8+ {[%clk 0:00:09]}  Kf7 {[%clk 0:00:10]} 51. Rh8 {[%clk 0:00:09]}  Rh1 {[%clk 0:00:09]} 52. f4 {[%clk 0:00:09]}  h2 {[%clk 0:00:07]} 53. b4 {[%clk 0:00:10]}  Ke7 {[%clk 0:00:06]} 54. b5 {[%clk 0:00:09]}  Kd7 {[%clk 0:00:06]} 55. Rh7+ {[%clk 0:00:10]}  Kc8 {[%clk 0:00:05]} 56. b6 {[%clk 0:00:10]}  Rb1 {[%clk 0:00:03]} 57. Rxh2 {[%clk 0:00:09]}  Rxb6 {[%clk 0:00:03]} 58. Rh7 {[%clk 0:00:09]}  Kd8 {[%clk 0:00:03]} 59. Kg5 {[%clk 0:00:08]}  Ke8 {[%clk 0:00:03]} 60. f5 {[%clk 0:00:08]}  Rb5 {[%clk 0:00:02]} 61. Bf6 {[%clk 0:00:07]}  Rb1 {[%clk 0:00:03]} 62. Kg6 {[%clk 0:00:07]}  Rg1+ {[%clk 0:00:03]} 63. Bg5 {[%clk 0:00:07]}  Rb1 {[%clk 0:00:03]} 64. Re7+ {[%clk 0:00:06]}  Kf8 {[%clk 0:00:03]} 65. Rd7 {[%clk 0:00:06]}  Rb8 {[%clk 0:00:03]} 66. Rd8+ {[%clk 0:00:06]}  Rxd8 {[%clk 0:00:03]} 67. Bxd8 {[%clk 0:00:07]}  Ke8 {[%clk 0:00:04]} 68. Bg5 {[%clk 0:00:07]}  Kf8 {[%clk 0:00:04]} 69. f6 {[%clk 0:00:07]}  Kg8 {[%clk 0:00:05]} 70. f7+ {[%clk 0:00:08]}  Kf8 {[%clk 0:00:06]} 71. Bh6+ {[%clk 0:00:08]} 1-0


[Site "https://www.chess.com"]

[Event "Titled Tuesday Blitz October 11 Late 2022"]
[White "Mazurkiewicz, Michal"]
[Black "Vlassov, Nikolai"]
[WhiteFideId "1124943"]
[BlackFideId "4103360"]
[WhiteElo "2063"]
[BlackElo "2324"]
[Result "1/2-1/2"]
[Round "03"]
[TimeControl "180+1"]
[Date "2022.10.12"]
[WhiteClock "0:00:08"]
[BlackClock "0:00:13"]

1. e4 {[%clk 0:02:59]}  c5 {[%clk 0:02:59]} 2. Nf3 {[%clk 0:02:59]}  d6 {[%clk 0:03:00]} 3. g3 {[%clk 0:02:59]}  g6 {[%clk 0:02:58]} 4. Bg2 {[%clk 0:02:59]}  Bg7 {[%clk 0:02:58]} 5. O-O {[%clk 0:03:00]}  Nc6 {[%clk 0:02:59]} 6. Re1 {[%clk 0:03:00]}  Nf6 {[%clk 0:02:59]} 7. d3 {[%clk 0:03:00]}  O-O {[%clk 0:02:59]} 8. e5 {[%clk 0:03:01]}  dxe5 {[%clk 0:02:54]} 9. Nxe5 {[%clk 0:03:02]}  Nxe5 {[%clk 0:02:55]} 10. Rxe5 {[%clk 0:03:03]}  Bg4 {[%clk 0:02:43]} 11. Qe1 {[%clk 0:03:02]}  Qb6 {[%clk 0:02:14]} 12. Nc3 {[%clk 0:02:53]}  Rac8 {[%clk 0:01:46]} 13. Bg5 {[%clk 0:01:49]}  Qxb2 {[%clk 0:01:36]} 14. h3 {[%clk 0:01:10]}  Be6 {[%clk 0:01:30]} 15. Re2 {[%clk 0:01:10]}  Nd7 {[%clk 0:01:06]} 16. Bd2 {[%clk 0:01:09]}  Qxc2 {[%clk 0:01:01]} 17. Rc1 {[%clk 0:00:42]}  Qxd3 {[%clk 0:00:58]} 18. Bxb7 {[%clk 0:00:30]}  Rb8 {[%clk 0:00:57]} 19. Be4 {[%clk 0:00:29]}  Qa6 {[%clk 0:00:53]} 20. Bf4 {[%clk 0:00:29]}  Rb4 {[%clk 0:00:48]} 21. Bg2 {[%clk 0:00:29]}  Rc4 {[%clk 0:00:39]} 22. Bf1 {[%clk 0:00:28]}  Qa5 {[%clk 0:00:34]} 23. Rxe6 {[%clk 0:00:27]}  Rxc3 {[%clk 0:00:31]} 24. Re3 {[%clk 0:00:19]}  Ra3 {[%clk 0:00:19]} 25. Qxa5 {[%clk 0:00:20]}  Rxa5 {[%clk 0:00:19]} 26. Rxe7 {[%clk 0:00:20]}  Nb6 {[%clk 0:00:17]} 27. Rc7 {[%clk 0:00:20]}  Bd4 {[%clk 0:00:15]} 28. Bd6 {[%clk 0:00:18]}  Rxa2 {[%clk 0:00:12]} 29. Bxc5 {[%clk 0:00:12]}  Bxc5 {[%clk 0:00:12]} 30. R1xc5 {[%clk 0:00:13]}  Rd8 {[%clk 0:00:08]} 31. Rb7 {[%clk 0:00:13]}  Rdd2 {[%clk 0:00:08]} 32. Rcc7 {[%clk 0:00:10]}  Rxf2 {[%clk 0:00:07]} 33. Rxa7 {[%clk 0:00:11]}  Rxa7 {[%clk 0:00:06]} 34. Rxa7 {[%clk 0:00:11]}  Rb2 {[%clk 0:00:07]} 35. Ba6 {[%clk 0:00:10]}  h5 {[%clk 0:00:07]} 36. Rb7 {[%clk 0:00:11]}  Kg7 {[%clk 0:00:06]} 37. Bf1 {[%clk 0:00:11]}  Kf6 {[%clk 0:00:06]} 38. Bg2 {[%clk 0:00:10]}  Ke6 {[%clk 0:00:03]} 39. Bf1 {[%clk 0:00:10]}  Na4 {[%clk 0:00:04]} 40. Bc4+ {[%clk 0:00:10]}  Ke5 {[%clk 0:00:04]} 41. Rxb2 {[%clk 0:00:10]}  Nxb2 {[%clk 0:00:04]} 42. Bxf7 {[%clk 0:00:11]}  Kf6 {[%clk 0:00:04]} 43. Be8 {[%clk 0:00:12]}  Nd3 {[%clk 0:00:04]} 44. g4 {[%clk 0:00:12]}  h4 {[%clk 0:00:04]} 45. Kg2 {[%clk 0:00:09]}  g5 {[%clk 0:00:04]} 46. Bb5 {[%clk 0:00:09]}  Nf4+ {[%clk 0:00:05]} 47. Kh2 {[%clk 0:00:09]}  Ke5 {[%clk 0:00:06]} 48. Bf1 {[%clk 0:00:09]}  Ke4 {[%clk 0:00:07]} 49. Bg2+ {[%clk 0:00:10]}  Ke3 {[%clk 0:00:07]} 50. Bf1 {[%clk 0:00:10]}  Kf2 {[%clk 0:00:08]} 51. Ba6 {[%clk 0:00:10]}  Ng6 {[%clk 0:00:08]} 52. Bb7 {[%clk 0:00:10]}  Ne5 {[%clk 0:00:09]} 53. Ba6 {[%clk 0:00:11]}  Nf3+ {[%clk 0:00:09]} 54. Kh1 {[%clk 0:00:11]}  Kg3 {[%clk 0:00:10]} 55. Bf1 {[%clk 0:00:11]}  Nd2 {[%clk 0:00:10]} 56. Bg2 {[%clk 0:00:11]}  Nc4 {[%clk 0:00:11]} 57. Bf1 {[%clk 0:00:11]}  Ne3 {[%clk 0:00:11]} 58. Bd3 {[%clk 0:00:10]}  Kxh3 {[%clk 0:00:11]} 59. Be2 {[%clk 0:00:08]}  Kg3 {[%clk 0:00:12]} 60. Kg1 {[%clk 0:00:08]}  Nxg4 {[%clk 0:00:12]} 61. Bc4 {[%clk 0:00:08]}  Ne3 {[%clk 0:00:12]} 62. Ba6 {[%clk 0:00:08]}  g4 {[%clk 0:00:12]} 63. Bb7 {[%clk 0:00:08]}  h3 {[%clk 0:00:13]} 64. Kh1 {[%clk 0:00:08]}  Nd1 {[%clk 0:00:13]} 65. Kg1 {[%clk 0:00:09]}  Nf2 {[%clk 0:00:13]} 66. Ba8 {[%clk 0:00:07]}  h2+ {[%clk 0:00:14]} 67. Kf1 {[%clk 0:00:07]}  Nh1 {[%clk 0:00:14]} 68. Bxh1 {[%clk 0:00:07]}  Kh3 {[%clk 0:00:14]} 69. Bg2+ {[%clk 0:00:08]}  Kg3 {[%clk 0:00:14]} 70. Bh1 {[%clk 0:00:08]}  Kh3 {[%clk 0:00:13]} 71. Bg2+ {[%clk 0:00:08]}  Kg3 {[%clk 0:00:13]} 1/2-1/2


[Site "https://www.chess.com"]

[Event "Titled Tuesday Blitz October 11 Late 2022"]
[White "Melikhov, Evgeny V."]
[Black "Aghasiyev, Kamal"]
[WhiteFideId "4122046"]
[BlackFideId "13402854"]
[WhiteElo "2169"]
[BlackElo "2341"]
[Result "1/2-1/2"]
[Round "03"]
[TimeControl "180+1"]
[Date "2022.10.12"]
[WhiteClock "0:00:51"]
[BlackClock "0:00:37"]

1. d4 {[%clk 0:02:58]}  d5 {[%clk 0:02:54]} 2. c4 {[%clk 0:02:57]}  e6 {[%clk 0:02:55]} 3. Nc3 {[%clk 0:02:57]}  Nf6 {[%clk 0:02:55]} 4. cxd5 {[%clk 0:02:58]}  exd5 {[%clk 0:02:55]} 5. Bg5 {[%clk 0:02:57]}  c6 {[%clk 0:02:54]} 6. Qc2 {[%clk 0:02:57]}  Nbd7 {[%clk 0:02:55]} 7. e3 {[%clk 0:02:56]}  Be7 {[%clk 0:02:55]} 8. Bd3 {[%clk 0:02:56]}  h6 {[%clk 0:02:56]} 9. Bh4 {[%clk 0:02:55]}  Nh5 {[%clk 0:02:56]} 10. Bxe7 {[%clk 0:02:54]}  Qxe7 {[%clk 0:02:57]} 11. Nge2 {[%clk 0:02:55]}  Nb6 {[%clk 0:02:56]} 12. O-O-O {[%clk 0:02:53]}  Bd7 {[%clk 0:02:56]} 13. Kb1 {[%clk 0:02:52]}  O-O-O {[%clk 0:02:55]} 14. Nc1 {[%clk 0:02:51]}  Kb8 {[%clk 0:02:53]} 15. Nb3 {[%clk 0:02:51]}  Nf6 {[%clk 0:02:48]} 16. Nc5 {[%clk 0:02:50]}  Ne8 {[%clk 0:02:49]} 17. Rc1 {[%clk 0:02:45]}  Nd6 {[%clk 0:02:49]} 18. N3a4 {[%clk 0:02:34]}  g6 {[%clk 0:02:46]} 19. Nxd7+ {[%clk 0:02:20]}  Nxd7 {[%clk 0:02:40]} 20. Nc5 {[%clk 0:02:17]}  Nxc5 {[%clk 0:02:40]} 21. Qxc5 {[%clk 0:02:16]}  Rhe8 {[%clk 0:02:38]} 22. Rhe1 {[%clk 0:02:09]}  Qg5 {[%clk 0:02:34]} 23. g3 {[%clk 0:02:00]}  Ne4 {[%clk 0:02:30]} 24. Bxe4 {[%clk 0:01:57]}  dxe4 {[%clk 0:02:30]} 25. h4 {[%clk 0:01:42]}  Qf6 {[%clk 0:02:26]} 26. Rc2 {[%clk 0:01:38]}  Rd5 {[%clk 0:02:25]} 27. Qa3 {[%clk 0:01:32]}  Qd6 {[%clk 0:02:21]} 28. Qxd6+ {[%clk 0:01:28]}  Rxd6 {[%clk 0:02:21]} 29. Rec1 {[%clk 0:01:27]}  Ree6 {[%clk 0:02:17]} 30. Rc5 {[%clk 0:01:25]}  Rf6 {[%clk 0:02:15]} 31. R1c2 {[%clk 0:01:24]}  Rd5 {[%clk 0:02:00]} 32. Rxd5 {[%clk 0:01:21]}  cxd5 {[%clk 0:02:01]} 33. Kc1 {[%clk 0:01:21]}  b6 {[%clk 0:01:59]} 34. Kd1 {[%clk 0:01:20]}  Kb7 {[%clk 0:02:00]} 35. Ke2 {[%clk 0:01:20]}  Rd6 {[%clk 0:01:56]} 36. b4 {[%clk 0:01:16]}  g5 {[%clk 0:01:37]} 37. h5 {[%clk 0:01:06]}  a6 {[%clk 0:01:30]} 38. a4 {[%clk 0:01:05]}  f5 {[%clk 0:01:30]} 39. Rc1 {[%clk 0:01:03]}  Rf6 {[%clk 0:01:18]} 40. b5 {[%clk 0:00:57]}  axb5 {[%clk 0:01:03]} 41. axb5 {[%clk 0:00:57]}  Rd6 {[%clk 0:00:59]} 42. Rc2 {[%clk 0:00:54]}  Rf6 {[%clk 0:00:50]} 43. Rc1 {[%clk 0:00:54]}  Rd6 {[%clk 0:00:37]} 44. Rc2 {[%clk 0:00:51]}  Rf6 {[%clk 0:00:37]} 45. Rc1 {[%clk 0:00:51]} 1/2-1/2


[Site "https://www.chess.com"]

[Event "Titled Tuesday Blitz October 11 Late 2022"]
[White "Melkumyan, Hrant"]
[Black "Bernadskiy, Vitaliy"]
[WhiteFideId "13302485"]
[BlackFideId "14100371"]
[WhiteElo "2604"]
[BlackElo "2473"]
[Result "1-0"]
[Round "03"]
[TimeControl "180+1"]
[Date "2022.10.11"]
[WhiteClock "0:01:34"]
[BlackClock "0:00:16"]

1. Nf3 {[%clk 0:03:00]}  Nf6 {[%clk 0:02:59]} 2. c4 {[%clk 0:03:00]}  e6 {[%clk 0:02:59]} 3. Nc3 {[%clk 0:02:59]}  d5 {[%clk 0:02:59]} 4. e3 {[%clk 0:02:59]}  Bd6 {[%clk 0:02:58]} 5. b3 {[%clk 0:02:59]}  b6 {[%clk 0:02:58]} 6. g3 {[%clk 0:02:54]}  Bb7 {[%clk 0:02:57]} 7. Bg2 {[%clk 0:02:55]}  O-O {[%clk 0:02:56]} 8. O-O {[%clk 0:02:55]}  Nbd7 {[%clk 0:02:53]} 9. Bb2 {[%clk 0:02:55]}  a6 {[%clk 0:02:52]} 10. Qe2 {[%clk 0:02:54]}  c5 {[%clk 0:02:47]} 11. cxd5 {[%clk 0:02:51]}  exd5 {[%clk 0:02:46]} 12. d4 {[%clk 0:02:51]}  Re8 {[%clk 0:02:46]} 13. Rfd1 {[%clk 0:02:51]}  Qe7 {[%clk 0:02:34]} 14. Rac1 {[%clk 0:02:48]}  Rad8 {[%clk 0:02:24]} 15. dxc5 {[%clk 0:02:48]}  bxc5 {[%clk 0:02:23]} 16. Nh4 {[%clk 0:02:48]}  Qe6 {[%clk 0:02:15]} 17. Qc2 {[%clk 0:02:32]}  Nb6 {[%clk 0:02:07]} 18. Ne2 {[%clk 0:02:27]}  Ba8 {[%clk 0:01:53]} 19. Nf5 {[%clk 0:02:18]}  Bf8 {[%clk 0:01:27]} 20. Nf4 {[%clk 0:02:18]}  Qc6 {[%clk 0:01:27]} 21. Nd4 {[%clk 0:02:00]}  Qc7 {[%clk 0:01:07]} 22. Nf5 {[%clk 0:01:58]}  Qc6 {[%clk 0:01:07]} 23. h3 {[%clk 0:01:52]}  Bb7 {[%clk 0:00:44]} 24. a4 {[%clk 0:01:51]}  c4 {[%clk 0:00:31]} 25. a5 {[%clk 0:01:46]}  Nbd7 {[%clk 0:00:24]} 26. bxc4 {[%clk 0:01:44]}  Rc8 {[%clk 0:00:21]} 27. Qb1 {[%clk 0:01:40]}  Qc7 {[%clk 0:00:19]} 28. cxd5 {[%clk 0:01:36]}  Qxa5 {[%clk 0:00:18]} 29. Bxf6 {[%clk 0:01:34]}  Nxf6 {[%clk 0:00:16]} 30. Qxb7 {[%clk 0:01:34]} 1-0


[Site "https://www.chess.com"]

[Event "Titled Tuesday Blitz October 11 Late 2022"]
[White "Milosevic, Milos"]
[Black "Stanisz, Patryk"]
[WhiteFideId "964875"]
[BlackFideId "1123106"]
[WhiteElo "2321"]
[BlackElo "2069"]
[Result "1-0"]
[Round "03"]
[TimeControl "180+1"]
[Date "2022.10.12"]
[WhiteClock "0:00:29"]
[BlackClock "0:00:02"]

1. e4 {[%clk 0:02:58]}  c5 {[%clk 0:02:59]} 2. Nc3 {[%clk 0:02:56]}  Nc6 {[%clk 0:02:59]} 3. Bb5 {[%clk 0:02:57]}  g6 {[%clk 0:02:58]} 4. Bxc6 {[%clk 0:02:57]}  dxc6 {[%clk 0:02:59]} 5. d3 {[%clk 0:02:57]}  Bg7 {[%clk 0:02:59]} 6. Be3 {[%clk 0:02:58]}  b6 {[%clk 0:02:53]} 7. Qd2 {[%clk 0:02:58]}  h6 {[%clk 0:02:47]} 8. Nge2 {[%clk 0:02:58]}  Nf6 {[%clk 0:02:46]} 9. h3 {[%clk 0:02:59]}  e5 {[%clk 0:02:30]} 10. O-O {[%clk 0:02:56]}  Qe7 {[%clk 0:02:22]} 11. Rae1 {[%clk 0:02:44]}  g5 {[%clk 0:02:20]} 12. Ng3 {[%clk 0:02:35]}  Qc7 {[%clk 0:02:08]} 13. Nf5 {[%clk 0:02:34]}  Bxf5 {[%clk 0:02:08]} 14. exf5 {[%clk 0:02:35]}  O-O-O {[%clk 0:02:09]} 15. a4 {[%clk 0:02:31]}  e4 {[%clk 0:01:54]} 16. Qe2 {[%clk 0:02:25]}  exd3 {[%clk 0:01:54]} 17. cxd3 {[%clk 0:02:25]}  Rhe8 {[%clk 0:01:53]} 18. Rd1 {[%clk 0:02:20]}  Qd7 {[%clk 0:01:51]} 19. Qf3 {[%clk 0:02:19]}  Nd5 {[%clk 0:01:38]} 20. Ne4 {[%clk 0:02:17]}  Be5 {[%clk 0:01:30]} 21. a5 {[%clk 0:02:13]}  Kb7 {[%clk 0:01:27]} 22. Bxc5 {[%clk 0:02:07]}  Bc7 {[%clk 0:00:57]} 23. axb6 {[%clk 0:02:04]}  axb6 {[%clk 0:00:58]} 24. Be3 {[%clk 0:02:03]}  f6 {[%clk 0:00:47]} 25. Rfe1 {[%clk 0:01:52]}  h5 {[%clk 0:00:44]} 26. b4 {[%clk 0:01:31]}  g4 {[%clk 0:00:44]} 27. hxg4 {[%clk 0:01:29]}  hxg4 {[%clk 0:00:45]} 28. Qxg4 {[%clk 0:01:29]}  Rg8 {[%clk 0:00:45]} 29. Qf3 {[%clk 0:01:27]}  Rg7 {[%clk 0:00:27]} 30. b5 {[%clk 0:01:23]}  Rdg8 {[%clk 0:00:26]} 31. bxc6+ {[%clk 0:01:23]}  Qxc6 {[%clk 0:00:26]} 32. g3 {[%clk 0:01:17]}  Nxe3 {[%clk 0:00:14]} 33. Rxe3 {[%clk 0:01:09]}  Kb8 {[%clk 0:00:11]} 34. Ra1 {[%clk 0:01:03]}  Rh8 {[%clk 0:00:09]} 35. Nxf6 {[%clk 0:00:58]}  Qxf3 {[%clk 0:00:06]} 36. Rxf3 {[%clk 0:00:58]}  Be5 {[%clk 0:00:06]} 37. Rb1 {[%clk 0:00:55]}  Bxf6 {[%clk 0:00:04]} 38. Rxb6+ {[%clk 0:00:55]}  Kc7 {[%clk 0:00:05]} 39. Rxf6 {[%clk 0:00:55]}  Rgh7 {[%clk 0:00:06]} 40. Re3 {[%clk 0:00:50]}  Rh1+ {[%clk 0:00:05]} 41. Kg2 {[%clk 0:00:50]}  R8h2+ {[%clk 0:00:05]} 42. Kf3 {[%clk 0:00:51]}  Rf1 {[%clk 0:00:06]} 43. Re2 {[%clk 0:00:48]}  Rd1 {[%clk 0:00:06]} 44. Ke4 {[%clk 0:00:46]}  Kd7 {[%clk 0:00:04]} 45. Ra6 {[%clk 0:00:46]}  Rh8 {[%clk 0:00:04]} 46. Re3 {[%clk 0:00:42]}  Rd2 {[%clk 0:00:03]} 47. f3 {[%clk 0:00:41]}  Re8+ {[%clk 0:00:03]} 48. Kf4 {[%clk 0:00:41]}  Rb8 {[%clk 0:00:04]} 49. Ra4 {[%clk 0:00:38]}  Rh8 {[%clk 0:00:03]} 50. g4 {[%clk 0:00:37]}  Rd1 {[%clk 0:00:03]} 51. f6 {[%clk 0:00:36]}  Rb1 {[%clk 0:00:04]} 52. Rae4 {[%clk 0:00:35]}  Rf8 {[%clk 0:00:04]} 53. g5 {[%clk 0:00:35]}  Rb6 {[%clk 0:00:03]} 54. Kf5 {[%clk 0:00:34]}  Rb5+ {[%clk 0:00:03]} 55. Re5 {[%clk 0:00:34]}  Rb1 {[%clk 0:00:03]} 56. f4 {[%clk 0:00:35]}  Rb4 {[%clk 0:00:03]} 57. Re7+ {[%clk 0:00:33]}  Kd6 {[%clk 0:00:02]} 58. R7e6+ {[%clk 0:00:34]}  Kd7 {[%clk 0:00:03]} 59. R3e5 {[%clk 0:00:33]}  Rh8 {[%clk 0:00:03]} 60. f7 {[%clk 0:00:32]}  Kd8 {[%clk 0:00:03]} 61. Re8+ {[%clk 0:00:32]}  Kd7 {[%clk 0:00:03]} 62. Rxh8 {[%clk 0:00:31]}  Rb7 {[%clk 0:00:02]} 63. f8=Q {[%clk 0:00:29]}  Kc6 {[%clk 0:00:02]} 64. Qc8+ {[%clk 0:00:29]}  Rc7 {[%clk 0:00:02]} 65. Rh6# {[%clk 0:00:29]} 1-0


[Site "https://www.chess.com"]

[Event "Titled Tuesday Blitz October 11 Late 2022"]
[White "Nakamura, Hikaru"]
[Black "D`Arruda, Ricardo D."]
[WhiteFideId "2016192"]
[BlackFideId "100692"]
[WhiteElo "2909"]
[BlackElo "2459"]
[Result "1-0"]
[Round "03"]
[TimeControl "180+1"]
[Date "2022.10.11"]
[WhiteClock "0:01:39"]
[BlackClock "0:00:24"]

1. Nf3 {[%clk 0:03:00]}  d5 {[%clk 0:02:59]} 2. g3 {[%clk 0:02:54]}  Nf6 {[%clk 0:02:59]} 3. Bg2 {[%clk 0:02:38]}  c6 {[%clk 0:02:59]} 4. d3 {[%clk 0:02:38]}  Nbd7 {[%clk 0:02:59]} 5. Nbd2 {[%clk 0:02:39]}  e5 {[%clk 0:02:58]} 6. e4 {[%clk 0:02:39]}  dxe4 {[%clk 0:02:57]} 7. dxe4 {[%clk 0:02:40]}  Be7 {[%clk 0:02:57]} 8. O-O {[%clk 0:02:41]}  O-O {[%clk 0:02:56]} 9. b3 {[%clk 0:02:42]}  Re8 {[%clk 0:02:54]} 10. Bb2 {[%clk 0:02:42]}  Bf8 {[%clk 0:02:53]} 11. Qe2 {[%clk 0:02:43]}  Qc7 {[%clk 0:02:52]} 12. a4 {[%clk 0:02:43]}  Nc5 {[%clk 0:02:42]} 13. a5 {[%clk 0:02:40]}  Bg4 {[%clk 0:02:42]} 14. h3 {[%clk 0:02:40]}  Bxf3 {[%clk 0:02:41]} 15. Bxf3 {[%clk 0:02:41]}  Ne6 {[%clk 0:02:37]} 16. c3 {[%clk 0:02:40]}  a6 {[%clk 0:02:33]} 17. b4 {[%clk 0:02:40]}  c5 {[%clk 0:02:29]} 18. b5 {[%clk 0:02:41]}  Red8 {[%clk 0:01:47]} 19. bxa6 {[%clk 0:02:35]}  bxa6 {[%clk 0:01:48]} 20. Nc4 {[%clk 0:02:34]}  Ne8 {[%clk 0:01:42]} 21. Nb6 {[%clk 0:02:33]}  Ra7 {[%clk 0:01:40]} 22. Rfd1 {[%clk 0:02:33]}  Nd6 {[%clk 0:01:34]} 23. h4 {[%clk 0:02:31]}  Nc8 {[%clk 0:01:25]} 24. Nd5 {[%clk 0:02:29]}  Qb8 {[%clk 0:01:22]} 25. Bg4 {[%clk 0:02:27]}  Nd6 {[%clk 0:01:04]} 26. Ba3 {[%clk 0:02:15]}  Nb5 {[%clk 0:01:02]} 27. Bb2 {[%clk 0:02:14]}  Nec7 {[%clk 0:00:56]} 28. Nb6 {[%clk 0:02:11]}  Rxd1+ {[%clk 0:00:51]} 29. Rxd1 {[%clk 0:02:12]}  Nd6 {[%clk 0:00:48]} 30. Nd7 {[%clk 0:02:10]}  Qe8 {[%clk 0:00:45]} 31. c4 {[%clk 0:02:04]}  f6 {[%clk 0:00:41]} 32. Ba3 {[%clk 0:01:53]}  Nc8 {[%clk 0:00:37]} 33. h5 {[%clk 0:01:51]}  Rb7 {[%clk 0:00:33]} 34. h6 {[%clk 0:01:50]}  Bd6 {[%clk 0:00:30]} 35. hxg7 {[%clk 0:01:48]}  Kxg7 {[%clk 0:00:31]} 36. Bf5 {[%clk 0:01:45]}  Ne6 {[%clk 0:00:26]} 37. Qg4+ {[%clk 0:01:43]}  Kf7 {[%clk 0:00:24]} 38. Qh5+ {[%clk 0:01:38]}  Ke7 {[%clk 0:00:24]} 39. Qxe8+ {[%clk 0:01:39]} 1-0


[Site "https://www.chess.com"]